[Event "*** Titled Tuesday Blitz"]
[Site "Chess.com"]
[Date "2021.03.16"]
[Round "11"]
[White "Shuvalov"]
[Black "IsaacWiebe"]
[Result "1-0"]
[WhiteElo "2480"]
[BlackElo "2268"]
[TimeControl "180+1"]
[EndTime "12:04:00 PDT"]
[Termination "Shuvalov won by checkmate"]

1. b4 {[%clk 0:02:54.6]} 1... b5 {[%clk 0:02:57.6]} 2. a4 {[%clk 0:02:50.9]}
2... bxa4 {[%clk 0:02:55.4]} 3. Bb2 {[%clk 0:02:50.2]} 3... Nf6 {[%clk
0:02:53.9]} 4. Nf3 {[%clk 0:02:48.2]} 4... e6 {[%clk 0:02:53.7]} 5. b5 {[%clk
0:02:45.2]} 5... d5 {[%clk 0:02:51.3]} 6. e3 {[%clk 0:02:43.9]} 6... Be7 {[%clk
0:02:48.6]} 7. Rxa4 {[%clk 0:02:41.7]} 7... O-O {[%clk 0:02:48.2]} 8. g4 {[%clk
0:02:40.3]} 8... Nbd7 {[%clk 0:02:44.9]} 9. g5 {[%clk 0:02:39.2]} 9... Ne4
{[%clk 0:02:44.8]} 10. Rg1 {[%clk 0:02:34.6]} 10... Nb6 {[%clk 0:02:38.9]} 11.
Ra2 {[%clk 0:02:30.4]} 11... Nxg5 {[%clk 0:02:24.7]} 12. Nxg5 {[%clk 0:02:27.3]}
12... Bxg5 {[%clk 0:02:24.2]} 13. Qg4 {[%clk 0:02:18.2]} 13... Bf6 {[%clk
0:02:19.9]} 14. Qxg7+ {[%clk 0:00:20.1]} 14... Bxg7 {[%clk 0:02:18.9]} 15. Rxg7+
{[%clk 0:00:21]} 15... Kh8 {[%clk 0:02:19.2]} 16. Rxf7+ {[%clk 0:00:19.6]} 16...
Kg8 {[%clk 0:02:17.2]} 17. Rg7+ {[%clk 0:00:19.3]} 17... Kh8 {[%clk 0:02:16.1]}
18. Rd7+ {[%clk 0:00:14.8]} 18... Qf6 {[%clk 0:02:12.9]} 19. Bxf6+ {[%clk
0:00:14]} 19... Rxf6 {[%clk 0:02:13.8]} 20. Rxc7 {[%clk 0:00:14.2]} 20... e5
{[%clk 0:02:11.1]} 21. Raxa7 {[%clk 0:00:13.6]} 21... Rxa7 {[%clk 0:02:11.9]}
22. Rxa7 {[%clk 0:00:14.5]} 22... d4 {[%clk 0:02:06.1]} 23. Rc7 {[%clk
0:00:13.5]} 23... Bd7 {[%clk 0:01:59.6]} 24. Rb7 {[%clk 0:00:12.5]} 24... Kg7
{[%clk 0:01:55.9]} 25. Na3 {[%clk 0:00:11.8]} 25... Kf8 {[%clk 0:01:51.3]} 26.
Nc4 {[%clk 0:00:11.2]} 26... Nxc4 {[%clk 0:01:51.4]} 27. Bxc4 {[%clk 0:00:12.1]}
27... Ke7 {[%clk 0:01:49.1]} 28. Bd5 {[%clk 0:00:11.4]} 28... Kd8 {[%clk
0:01:46.5]} 29. Be4 {[%clk 0:00:11.3]} 29... h5 {[%clk 0:01:44.5]} 30. h4 {[%clk
0:00:10.9]} 30... dxe3 {[%clk 0:01:42]} 31. fxe3 {[%clk 0:00:11.8]} 31... Kc8
{[%clk 0:01:38.1]} 32. c4 {[%clk 0:00:10.9]} 32... Be6 {[%clk 0:01:36.4]} 33.
Rb6 {[%clk 0:00:10.5]} 33... Kc7 {[%clk 0:01:35]} 34. Rc6+ {[%clk 0:00:10.5]}
34... Kd7 {[%clk 0:01:35.5]} 35. Bd5 {[%clk 0:00:10]} 35... Bxd5 {[%clk
0:01:32.1]} 36. Rxf6 {[%clk 0:00:09.6]} 36... Bxc4 {[%clk 0:01:33]} 37. b6
{[%clk 0:00:10]} 37... Kc8 {[%clk 0:01:32.6]} 38. Rh6 {[%clk 0:00:10.1]} 38...
Kb7 {[%clk 0:01:33.4]} 39. Kf2 {[%clk 0:00:10.2]} 39... Bf7 {[%clk 0:01:31.6]}
40. d4 {[%clk 0:00:10]} 40... exd4 {[%clk 0:01:31.2]} 41. exd4 {[%clk
0:00:10.9]} 41... Be8 {[%clk 0:01:31.5]} 42. Ke3 {[%clk 0:00:10.9]} 42... Bf7
{[%clk 0:01:30.8]} 43. Kf4 {[%clk 0:00:10.9]} 43... Be8 {[%clk 0:01:31.5]} 44.
Ke5 {[%clk 0:00:11.2]} 44... Bd7 {[%clk 0:01:31.4]} 45. d5 {[%clk 0:00:11.6]}
45... Bg4 {[%clk 0:01:31.1]} 46. Kd4 {[%clk 0:00:10.5]} 46... Ka6 {[%clk
0:01:30.2]} 47. Kc5 {[%clk 0:00:11.4]} 47... Bc8 {[%clk 0:01:29.5]} 48. Rh7
{[%clk 0:00:11.7]} 48... Bb7 {[%clk 0:01:28.6]} 49. Rc7 {[%clk 0:00:11.6]} 49...
Bc6 {[%clk 0:01:28.6]} 50. Ra7# {[%clk 0:00:11.4]} 1-0

[Event "*** Titled Tuesday Blitz"]
[Site "Chess.com"]
[Date "2021.03.16"]
[Round "11"]
[White "ural58"]
[Black "Tekushka"]
[Result "0-1"]
[WhiteElo "2499"]
[BlackElo "2425"]
[TimeControl "180+1"]
[EndTime "12:04:01 PDT"]
[Termination "Tekushka won on time"]

1. e4 {[%clk 0:03:00.9]} 1... e6 {[%clk 0:02:59.7]} 2. Qe2 {[%clk 0:02:57.7]}
2... c5 {[%clk 0:02:56.6]} 3. b3 {[%clk 0:02:27.1]} 3... Nc6 {[%clk 0:02:50.7]}
4. Bb2 {[%clk 0:02:24.4]} 4... Nf6 {[%clk 0:02:50]} 5. e5 {[%clk 0:02:09.2]}
5... Nd5 {[%clk 0:02:49]} 6. Nf3 {[%clk 0:00:36.1]} 6... Be7 {[%clk 0:02:47.1]}
7. g3 {[%clk 0:00:35.7]} 7... O-O {[%clk 0:02:42.1]} 8. Bg2 {[%clk 0:00:36.6]}
8... d6 {[%clk 0:02:22.8]} 9. exd6 {[%clk 0:00:36]} 9... Qxd6 {[%clk 0:02:21.7]}
10. O-O {[%clk 0:00:36.9]} 10... Bf6 {[%clk 0:02:19]} 11. Bxf6 {[%clk
0:00:37.1]} 11... Nxf6 {[%clk 0:02:18.8]} 12. Nc3 {[%clk 0:00:37.7]} 12... b6
{[%clk 0:02:04.9]} 13. Nb5 {[%clk 0:00:35.5]} 13... Qb8 {[%clk 0:01:34.6]} 14.
Ne5 {[%clk 0:00:29.6]} 14... Nxe5 {[%clk 0:01:32]} 15. Bxa8 {[%clk 0:00:27.8]}
15... Qxa8 {[%clk 0:01:23.3]} 16. Qxe5 {[%clk 0:00:20.9]} 16... Bb7 {[%clk
0:01:12.8]} 17. Rae1 {[%clk 0:00:14.8]} 17... Bg2 {[%clk 0:00:59.9]} 18. d4
{[%clk 0:00:10.8]} 18... Bh3 {[%clk 0:00:53]} 19. f3 {[%clk 0:00:10.1]} 19...
Bxf1 {[%clk 0:00:51.5]} 20. Rxf1 {[%clk 0:00:10.7]} 20... Qc6 {[%clk 0:00:49.5]}
21. c4 {[%clk 0:00:10.4]} 21... a6 {[%clk 0:00:46.1]} 22. Nc3 {[%clk 0:00:10.4]}
22... Rd8 {[%clk 0:00:43.8]} 23. Rd1 {[%clk 0:00:09.6]} 23... Qxf3 {[%clk
0:00:39.8]} 0-1

[Event "*** Titled Tuesday Blitz"]
[Site "Chess.com"]
[Date "2021.03.16"]
[Round "11"]
[White "SanchezKelvin"]
[Black "Murad_Ibrahimli"]
[Result "0-1"]
[WhiteElo "2640"]
[BlackElo "2779"]
[TimeControl "180+1"]
[EndTime "12:04:26 PDT"]
[Termination "Murad_Ibrahimli won by checkmate"]

1. d4 {[%clk 0:02:56.3]} 1... d5 {[%clk 0:02:58.7]} 2. Nf3 {[%clk 0:02:56.6]}
2... Nf6 {[%clk 0:02:58.6]} 3. c4 {[%clk 0:02:57.5]} 3... dxc4 {[%clk
0:02:58.7]} 4. Nc3 {[%clk 0:02:58.4]} 4... a6 {[%clk 0:02:55.4]} 5. a4 {[%clk
0:02:57.9]} 5... e6 {[%clk 0:02:51.2]} 6. Bg5 {[%clk 0:02:54.8]} 6... Bb4 {[%clk
0:02:46.8]} 7. e3 {[%clk 0:02:53.3]} 7... Qd5 {[%clk 0:02:42.7]} 8. Bxf6 {[%clk
0:02:50]} 8... gxf6 {[%clk 0:02:43.6]} 9. e4 {[%clk 0:02:46.2]} 9... Qxe4+
{[%clk 0:02:42.1]} 10. Be2 {[%clk 0:02:46.7]} 10... Rg8 {[%clk 0:02:24.6]} 11.
O-O {[%clk 0:02:45.8]} 11... Bxc3 {[%clk 0:02:25.1]} 12. bxc3 {[%clk 0:02:44.8]}
12... Qd5 {[%clk 0:02:25.3]} 13. Ne1 {[%clk 0:02:44.3]} 13... Nc6 {[%clk
0:02:21.9]} 14. Bf3 {[%clk 0:02:43.9]} 14... Qd6 {[%clk 0:02:22.2]} 15. Qe2
{[%clk 0:02:41]} 15... Na5 {[%clk 0:02:22]} 16. Qe4 {[%clk 0:02:40.3]} 16... f5
{[%clk 0:02:21]} 17. Qh4 {[%clk 0:02:39.8]} 17... Bd7 {[%clk 0:02:21]} 18. Nc2
{[%clk 0:02:32.1]} 18... Bc6 {[%clk 0:02:20.1]} 19. Bxc6+ {[%clk 0:02:11.5]}
19... Qxc6 {[%clk 0:02:19.9]} 20. Ne3 {[%clk 0:02:11]} 20... Nb3 {[%clk
0:02:16.5]} 21. d5 {[%clk 0:01:59.7]} 21... Qd7 {[%clk 0:02:07.6]} 22. dxe6
{[%clk 0:01:57.1]} 22... fxe6 {[%clk 0:02:06.8]} 23. Rad1 {[%clk 0:01:52.5]}
23... Qe7 {[%clk 0:02:03.9]} 24. Qxc4 {[%clk 0:01:51.9]} 24... Nc5 {[%clk
0:02:00.4]} 25. Nxf5 {[%clk 0:01:46.8]} 25... Qg5 {[%clk 0:01:58.6]} 26. Ng3
{[%clk 0:01:38.3]} 26... Rd8 {[%clk 0:01:57.1]} 27. Rde1 {[%clk 0:01:33.6]}
27... Kd7 {[%clk 0:01:47.3]} 28. h4 {[%clk 0:01:25.5]} 28... Qe7 {[%clk
0:01:36.8]} 29. Re5 {[%clk 0:01:24.7]} 29... b6 {[%clk 0:01:30.6]} 30. a5 {[%clk
0:01:21.9]} 30... Qd6 {[%clk 0:01:23.4]} 31. Rfe1 {[%clk 0:01:18.8]} 31... Kc8
{[%clk 0:01:22.5]} 32. axb6 {[%clk 0:01:10.3]} 32... cxb6 {[%clk 0:01:20.8]} 33.
R5e3 {[%clk 0:01:01.8]} 33... Qd5 {[%clk 0:01:14.9]} 34. Qb4 {[%clk 0:00:57.4]}
34... Qc6 {[%clk 0:01:08.3]} 35. Ne4 {[%clk 0:00:50.2]} 35... Nd3 {[%clk
0:01:05.9]} 36. Qa3 {[%clk 0:00:36.5]} 36... a5 {[%clk 0:00:55.4]} 37. R1e2
{[%clk 0:00:24.3]} 37... Nf4 {[%clk 0:00:53.9]} 38. Re1 {[%clk 0:00:14]} 38...
Nxg2 {[%clk 0:00:52.2]} 39. Ng3 {[%clk 0:00:14.3]} 39... Nxh4 {[%clk 0:00:49.1]}
40. Rxe6 {[%clk 0:00:11.1]} 40... Qg2# {[%clk 0:00:48.2]} 0-1

[Event "*** Titled Tuesday Blitz"]
[Site "Chess.com"]
[Date "2021.03.16"]
[Round "11"]
[White "Kislov_Oleg"]
[Black "Aradhya2000"]
[Result "0-1"]
[WhiteElo "2446"]
[BlackElo "2573"]
[TimeControl "180+1"]
[EndTime "12:04:34 PDT"]
[Termination "Aradhya2000 won by checkmate"]

1. e4 {[%clk 0:03:00.9]} 1... e5 {[%clk 0:03:00]} 2. Nf3 {[%clk 0:03:00.3]} 2...
Nc6 {[%clk 0:02:55.9]} 3. d4 {[%clk 0:03:00.4]} 3... exd4 {[%clk 0:02:55.6]} 4.
Nxd4 {[%clk 0:03:00.6]} 4... Nf6 {[%clk 0:02:56.1]} 5. Nc3 {[%clk 0:02:59.7]}
5... Nxe4 {[%clk 0:02:55.3]} 6. Nxe4 {[%clk 0:02:54.1]} 6... Qe7 {[%clk
0:02:54.8]} 7. Nxc6 {[%clk 0:02:13]} 7... Qxe4+ {[%clk 0:02:50.3]} 8. Be2 {[%clk
0:02:13.1]} 8... dxc6 {[%clk 0:02:49.5]} 9. O-O {[%clk 0:02:12.8]} 9... Be6
{[%clk 0:02:48.2]} 10. Bf3 {[%clk 0:02:11.7]} 10... Qg6 {[%clk 0:02:40]} 11. Bf4
{[%clk 0:02:00.6]} 11... Bd6 {[%clk 0:02:31.2]} 12. Bxd6 {[%clk 0:01:54.5]}
12... Rd8 {[%clk 0:02:14.9]} 13. Qd4 {[%clk 0:01:54.5]} 13... Rxd6 {[%clk
0:02:07.8]} 14. Qxa7 {[%clk 0:01:52.9]} 14... O-O {[%clk 0:02:07.9]} 15. Qxb7
{[%clk 0:01:51.6]} 15... Qxc2 {[%clk 0:01:32.4]} 16. a4 {[%clk 0:01:33.6]} 16...
Bd5 {[%clk 0:00:59.8]} 17. Qxc7 {[%clk 0:01:23.7]} 17... Rfd8 {[%clk 0:00:49.6]}
18. Bxd5 {[%clk 0:01:14.9]} 18... Rxd5 {[%clk 0:00:47.6]} 19. a5 {[%clk
0:01:13.3]} 19... h5 {[%clk 0:00:43.8]} 20. a6 {[%clk 0:01:12.5]} 20... Rd1
{[%clk 0:00:27.7]} 21. Qa5 {[%clk 0:00:47]} 21... Qe2 {[%clk 0:00:22.7]} 22. Re1
{[%clk 0:00:34.8]} 22... R8d5 {[%clk 0:00:06.1]} 23. Qxd5 {[%clk 0:00:05.8]}
23... Qxe1# {[%clk 0:00:03.2]} 0-1

[Event "*** Titled Tuesday Blitz"]
[Site "Chess.com"]
[Date "2021.03.16"]
[Round "11"]
[White "kreonx"]
[Black "HackingKid98"]
[Result "1/2-1/2"]
[WhiteElo "2339"]
[BlackElo "2433"]
[TimeControl "180+1"]
[EndTime "12:04:44 PDT"]
[Termination "Game drawn by repetition"]

1. e4 {[%clk 0:03:00.9]} 1... a6 {[%clk 0:02:59.8]} 2. b4 {[%clk 0:02:51.7]}
2... b5 {[%clk 0:02:59.3]} 3. c4 {[%clk 0:02:51.4]} 3... Bb7 {[%clk 0:02:58.2]}
4. Nc3 {[%clk 0:02:48.4]} 4... e6 {[%clk 0:02:51.1]} 5. a3 {[%clk 0:02:44.7]}
5... bxc4 {[%clk 0:02:28.3]} 6. Bxc4 {[%clk 0:02:45.6]} 6... c5 {[%clk
0:02:28.1]} 7. b5 {[%clk 0:02:34.8]} 7... axb5 {[%clk 0:02:26.1]} 8. Bxb5 {[%clk
0:02:34.4]} 8... Nf6 {[%clk 0:02:17.1]} 9. d3 {[%clk 0:02:32.8]} 9... Be7 {[%clk
0:02:10.8]} 10. Nf3 {[%clk 0:02:30]} 10... O-O {[%clk 0:02:10.5]} 11. O-O {[%clk
0:02:29.5]} 11... d5 {[%clk 0:02:10.6]} 12. e5 {[%clk 0:02:24.4]} 12... Nfd7
{[%clk 0:02:10.3]} 13. Re1 {[%clk 0:02:10.9]} 13... Nc6 {[%clk 0:02:07.9]} 14.
Bxc6 {[%clk 0:02:07.1]} 14... Bxc6 {[%clk 0:02:07.6]} 15. d4 {[%clk 0:02:08]}
15... Qb6 {[%clk 0:02:06.2]} 16. Be3 {[%clk 0:02:07.2]} 16... c4 {[%clk
0:02:04.3]} 17. Qc2 {[%clk 0:01:51.2]} 17... Qa5 {[%clk 0:02:00]} 18. Ng5 {[%clk
0:01:45.4]} 18... Bxg5 {[%clk 0:01:54.5]} 19. Bxg5 {[%clk 0:01:44.8]} 19... Rfb8
{[%clk 0:01:54.2]} 20. Be7 {[%clk 0:01:21.8]} 20... Rb3 {[%clk 0:01:48.5]} 21.
Bb4 {[%clk 0:01:15.5]} 21... Rxb4 {[%clk 0:01:02.7]} 22. axb4 {[%clk 0:01:14.5]}
22... Qxa1 {[%clk 0:01:03.6]} 23. Rxa1 {[%clk 0:01:14.7]} 23... Rxa1+ {[%clk
0:01:03.8]} 24. Nb1 {[%clk 0:01:12.1]} 24... c3 {[%clk 0:01:03.7]} 25. h4 {[%clk
0:01:03]} 25... Ba4 {[%clk 0:00:46.2]} 26. Qxc3 {[%clk 0:00:53.7]} 26... Rxb1+
{[%clk 0:00:46.1]} 27. Kh2 {[%clk 0:00:54.2]} 27... h5 {[%clk 0:00:36.8]} 28.
Qa3 {[%clk 0:00:31.5]} 28... Nb6 {[%clk 0:00:34.7]} 29. Qc3 {[%clk 0:00:26.6]}
29... Nc4 {[%clk 0:00:33.1]} 30. f3 {[%clk 0:00:20.6]} 30... Rb3 {[%clk
0:00:28.3]} 31. Qc1 {[%clk 0:00:19.5]} 31... Rxb4 {[%clk 0:00:26.4]} 32. Qg5
{[%clk 0:00:18.6]} 32... g6 {[%clk 0:00:25.5]} 33. Qd8+ {[%clk 0:00:18.3]} 33...
Kg7 {[%clk 0:00:21.8]} 34. Qf6+ {[%clk 0:00:18.3]} 34... Kf8 {[%clk 0:00:20.4]}
35. Qd8+ {[%clk 0:00:16.1]} 35... Kg7 {[%clk 0:00:20.5]} 36. Qf6+ {[%clk
0:00:16.6]} 36... Kg8 {[%clk 0:00:20.1]} 37. Qd8+ {[%clk 0:00:16.2]} 37... Kg7
{[%clk 0:00:19.6]} 1/2-1/2

[Event "*** Titled Tuesday Blitz"]
[Site "Chess.com"]
[Date "2021.03.16"]
[Round "11"]
[White "SharapovEvgeny"]
[Black "xberli"]
[Result "0-1"]
[WhiteElo "2475"]
[BlackElo "2603"]
[TimeControl "180+1"]
[EndTime "12:04:48 PDT"]
[Termination "xberli won by resignation"]

1. c4 {[%clk 0:02:58.5]} 1... Nf6 {[%clk 0:02:59.2]} 2. Nc3 {[%clk 0:02:57.6]}
2... g6 {[%clk 0:02:59.3]} 3. g3 {[%clk 0:02:57.3]} 3... Bg7 {[%clk 0:02:59.1]}
4. Bg2 {[%clk 0:02:57.4]} 4... O-O {[%clk 0:02:59.6]} 5. e3 {[%clk 0:02:57.2]}
5... c6 {[%clk 0:02:58.4]} 6. Nge2 {[%clk 0:02:56.7]} 6... d5 {[%clk 0:02:58.9]}
7. cxd5 {[%clk 0:02:56.4]} 7... Nxd5 {[%clk 0:02:59.8]} 8. Nxd5 {[%clk
0:02:55.7]} 8... cxd5 {[%clk 0:03:00.7]} 9. d4 {[%clk 0:02:55.4]} 9... Nc6
{[%clk 0:02:56.1]} 10. O-O {[%clk 0:02:54.8]} 10... e6 {[%clk 0:02:54]} 11. Bd2
{[%clk 0:02:54.2]} 11... Ne7 {[%clk 0:02:52.7]} 12. Rc1 {[%clk 0:02:52.3]} 12...
Nf5 {[%clk 0:02:52.3]} 13. Qb3 {[%clk 0:02:48.9]} 13... h5 {[%clk 0:02:51.7]}
14. Rc2 {[%clk 0:02:40]} 14... h4 {[%clk 0:02:49.3]} 15. Rfc1 {[%clk 0:02:39.2]}
15... b6 {[%clk 0:02:45.4]} 16. Nf4 {[%clk 0:02:31.8]} 16... Ba6 {[%clk
0:02:39.9]} 17. Bb4 {[%clk 0:02:21.6]} 17... Re8 {[%clk 0:02:37]} 18. Qc3 {[%clk
0:02:12.6]} 18... Qg5 {[%clk 0:02:24.3]} 19. Qd2 {[%clk 0:02:05.1]} 19... Rac8
{[%clk 0:02:15.2]} 20. Rxc8 {[%clk 0:02:03.9]} 20... Rxc8 {[%clk 0:02:10.9]} 21.
Rxc8+ {[%clk 0:02:02.5]} 21... Bxc8 {[%clk 0:02:11.8]} 22. Qc2 {[%clk 0:01:58]}
22... Ba6 {[%clk 0:02:08.4]} 23. Qc7 {[%clk 0:01:56.8]} 23... hxg3 {[%clk
0:01:55.8]} 24. hxg3 {[%clk 0:00:50.3]} 24... Nxg3 {[%clk 0:01:47.4]} 25. fxg3
{[%clk 0:00:47.6]} 25... Qxg3 {[%clk 0:01:48.3]} 26. Bd2 {[%clk 0:00:43.9]}
26... Qg4 {[%clk 0:01:22.2]} 27. Qc2 {[%clk 0:00:40.3]} 27... Bf6 {[%clk
0:00:55.7]} 28. Qc1 {[%clk 0:00:32.6]} 28... g5 {[%clk 0:00:41.7]} 29. Nh3
{[%clk 0:00:31.6]} 29... Qf5 {[%clk 0:00:30.3]} 30. Nf2 {[%clk 0:00:29.6]} 30...
Be7 {[%clk 0:00:24]} 31. Qd1 {[%clk 0:00:28.2]} 31... Bc8 {[%clk 0:00:19.6]} 32.
b3 {[%clk 0:00:26.3]} 32... Bd6 {[%clk 0:00:18.6]} 33. Be1 {[%clk 0:00:18.8]}
33... Kf8 {[%clk 0:00:16.4]} 34. Qe2 {[%clk 0:00:17.3]} 34... Qb1 {[%clk
0:00:14.9]} 35. Nd3 {[%clk 0:00:16.4]} 35... Ba6 {[%clk 0:00:14.1]} 36. Bf1
{[%clk 0:00:16.5]} 36... Bxd3 {[%clk 0:00:14]} 37. Qxd3 {[%clk 0:00:16.8]} 37...
Qxe1 {[%clk 0:00:14.6]} 38. Qe2 {[%clk 0:00:16.4]} 38... Qg3+ {[%clk 0:00:14.5]}
39. Qg2 {[%clk 0:00:16.2]} 39... Qxe3+ {[%clk 0:00:14.5]} 0-1

[Event "*** Titled Tuesday Blitz"]
[Site "Chess.com"]
[Date "2021.03.16"]
[Round "11"]
[White "ViktoriyaTarasova"]
[Black "QuintilianoR"]
[Result "1-0"]
[WhiteElo "2403"]
[BlackElo "2697"]
[TimeControl "180+1"]
[EndTime "12:04:50 PDT"]
[Termination "ViktoriyaTarasova won on time"]

1. d4 {[%clk 0:03:00.9]} 1... Nf6 {[%clk 0:02:59.2]} 2. c4 {[%clk 0:03:01.1]}
2... e6 {[%clk 0:02:59.8]} 3. Nc3 {[%clk 0:03:01]} 3... Bb4 {[%clk 0:02:59.2]}
4. Nf3 {[%clk 0:03:00.9]} 4... b6 {[%clk 0:02:58.8]} 5. e3 {[%clk 0:03:00]} 5...
Bb7 {[%clk 0:02:58.9]} 6. Bd3 {[%clk 0:02:59.8]} 6... O-O {[%clk 0:02:59.5]} 7.
O-O {[%clk 0:02:59.3]} 7... d5 {[%clk 0:03:00]} 8. cxd5 {[%clk 0:02:59.3]} 8...
exd5 {[%clk 0:02:59.9]} 9. Ne5 {[%clk 0:02:59.6]} 9... Nbd7 {[%clk 0:02:57.2]}
10. f4 {[%clk 0:02:59.3]} 10... a6 {[%clk 0:02:54.1]} 11. g4 {[%clk 0:02:58.6]}
11... Bd6 {[%clk 0:02:47]} 12. g5 {[%clk 0:02:57.5]} 12... Ne4 {[%clk
0:02:46.6]} 13. Qh5 {[%clk 0:02:34]} 13... g6 {[%clk 0:02:20.6]} 14. Qh6 {[%clk
0:02:29.4]} 14... Qe7 {[%clk 0:02:15.2]} 15. Nxe4 {[%clk 0:01:41.4]} 15... dxe4
{[%clk 0:02:13]} 16. Bc4 {[%clk 0:01:42]} 16... Kh8 {[%clk 0:01:17.3]} 17. Bd2
{[%clk 0:00:52.7]} 17... b5 {[%clk 0:01:13.8]} 18. Bb3 {[%clk 0:00:50]} 18...
Nb6 {[%clk 0:00:20.9]} 19. Rac1 {[%clk 0:00:18.1]} 19... Bd5 {[%clk 0:00:19.8]}
20. Bd1 {[%clk 0:00:16.3]} 20... Rg8 {[%clk 0:00:18.2]} 21. Ng4 {[%clk
0:00:15.9]} 21... Nd7 {[%clk 0:00:16.9]} 22. Bc3 {[%clk 0:00:14.5]} 22... Raf8
{[%clk 0:00:15.8]} 23. a3 {[%clk 0:00:13.3]} 23... f6 {[%clk 0:00:16.2]} 24.
gxf6 {[%clk 0:00:10]} 24... Nxf6 {[%clk 0:00:17.1]} 25. Nxf6 {[%clk 0:00:08.5]}
25... Rxf6 {[%clk 0:00:16.6]} 26. Qh3 {[%clk 0:00:08.6]} 26... Rf5 {[%clk
0:00:15.1]} 27. Kh1 {[%clk 0:00:08.6]} 27... Qf6 {[%clk 0:00:15.2]} 28. Bg4
{[%clk 0:00:08.1]} 28... Be6 {[%clk 0:00:14.4]} 29. Bxf5 {[%clk 0:00:08.5]}
29... Bxf5 {[%clk 0:00:15.3]} 30. Qg2 {[%clk 0:00:09.1]} 30... g5 {[%clk
0:00:14.6]} 31. Rg1 {[%clk 0:00:09.5]} 31... g4 {[%clk 0:00:12.9]} 32. d5 {[%clk
0:00:09.9]} 1-0

[Event "*** Titled Tuesday Blitz"]
[Site "Chess.com"]
[Date "2021.03.16"]
[Round "11"]
[White "InitiatingASC"]
[Black "politeplayer"]
[Result "1-0"]
[WhiteElo "2461"]
[BlackElo "2262"]
[TimeControl "180+1"]
[EndTime "12:04:51 PDT"]
[Termination "InitiatingASC won by resignation"]

1. d4 {[%clk 0:03:00.9]} 1... Nf6 {[%clk 0:02:57.3]} 2. c4 {[%clk 0:03:00.4]}
2... c5 {[%clk 0:02:57.1]} 3. e3 {[%clk 0:02:59.6]} 3... e6 {[%clk 0:02:56.8]}
4. Nc3 {[%clk 0:02:59]} 4... d5 {[%clk 0:02:56.7]} 5. Nf3 {[%clk 0:02:59.1]}
5... a6 {[%clk 0:02:56.5]} 6. a3 {[%clk 0:02:54.7]} 6... Nc6 {[%clk 0:02:53]} 7.
Bd3 {[%clk 0:02:50.2]} 7... dxc4 {[%clk 0:02:51.8]} 8. Bxc4 {[%clk 0:02:51.1]}
8... b5 {[%clk 0:02:52.1]} 9. Bd3 {[%clk 0:02:51.5]} 9... Bb7 {[%clk 0:02:52.3]}
10. O-O {[%clk 0:02:51]} 10... cxd4 {[%clk 0:02:52]} 11. exd4 {[%clk 0:02:51]}
11... Bd6 {[%clk 0:02:52.3]} 12. Bc2 {[%clk 0:02:50.7]} 12... b4 {[%clk
0:02:44.3]} 13. Ne4 {[%clk 0:02:47.2]} 13... Nxe4 {[%clk 0:02:33.1]} 14. Bxe4
{[%clk 0:02:46.5]} 14... bxa3 {[%clk 0:02:30.2]} 15. bxa3 {[%clk 0:02:42.5]}
15... f5 {[%clk 0:02:16.4]} 16. Bd3 {[%clk 0:02:29]} 16... Ne7 {[%clk
0:02:08.1]} 17. Bc4 {[%clk 0:02:08.9]} 17... Nd5 {[%clk 0:01:59.1]} 18. Re1
{[%clk 0:02:05.5]} 18... Qc8 {[%clk 0:01:50.1]} 19. Qa4+ {[%clk 0:01:58.1]}
19... Bc6 {[%clk 0:01:49.3]} 20. Qb3 {[%clk 0:01:58.4]} 20... Rb8 {[%clk
0:01:44.7]} 21. Qa2 {[%clk 0:01:58.2]} 21... O-O {[%clk 0:01:41.5]} 22. Ng5
{[%clk 0:01:51.5]} 22... Rf6 {[%clk 0:01:33.6]} 23. Nxe6 {[%clk 0:01:43.1]}
23... Rxe6 {[%clk 0:01:26.4]} 24. Bxd5 {[%clk 0:01:40.9]} 24... Bxd5 {[%clk
0:01:26.7]} 25. Qxd5 {[%clk 0:01:40.3]} 25... Kf7 {[%clk 0:01:16.5]} 26. Qxf5+
{[%clk 0:01:37]} 26... Rf6 {[%clk 0:01:11.6]} 27. Qd5+ {[%clk 0:01:37]} 27...
Kf8 {[%clk 0:01:08.2]} 28. Bg5 {[%clk 0:01:35.7]} 28... Qd7 {[%clk 0:00:58.3]}
29. Qe4 {[%clk 0:01:18.3]} 29... Rg6 {[%clk 0:00:53.5]} 30. Bf4 {[%clk
0:01:10.4]} 30... Re8 {[%clk 0:00:33.2]} 31. Bxd6+ {[%clk 0:01:04.7]} 31... Rxd6
{[%clk 0:00:32.6]} 32. Qxe8+ {[%clk 0:00:57.1]} 32... Qxe8 {[%clk 0:00:32.4]}
33. Rxe8+ {[%clk 0:00:58]} 33... Kxe8 {[%clk 0:00:32.7]} 34. Rd1 {[%clk
0:00:58.7]} 34... Rb6 {[%clk 0:00:27.3]} 35. Re1+ {[%clk 0:00:48.6]} 35... Kd7
{[%clk 0:00:25.6]} 36. g3 {[%clk 0:00:48.8]} 36... Rb3 {[%clk 0:00:23.9]} 37.
Re3 {[%clk 0:00:48]} 37... Rb2 {[%clk 0:00:20.7]} 38. Rd3 {[%clk 0:00:45.4]}
38... Kd6 {[%clk 0:00:19.4]} 39. d5 {[%clk 0:00:45.4]} 39... a5 {[%clk
0:00:19.8]} 40. Kg2 {[%clk 0:00:45.1]} 40... a4 {[%clk 0:00:20.1]} 41. Kf3
{[%clk 0:00:45.7]} 41... Rb3 {[%clk 0:00:20.4]} 42. Ke3 {[%clk 0:00:46]} 42...
g5 {[%clk 0:00:15.9]} 43. Rxb3 {[%clk 0:00:38.1]} 43... axb3 {[%clk 0:00:14.9]}
44. Kd3 {[%clk 0:00:38.7]} 44... Kxd5 {[%clk 0:00:14.3]} 45. Kc3 {[%clk
0:00:38.8]} 45... g4 {[%clk 0:00:14.6]} 46. Kxb3 {[%clk 0:00:38.4]} 46... Kc5
{[%clk 0:00:10.3]} 47. Kc3 {[%clk 0:00:38.5]} 47... Kb5 {[%clk 0:00:09.6]} 48.
Kd3 {[%clk 0:00:38.4]} 48... Ka4 {[%clk 0:00:10.1]} 49. Ke4 {[%clk 0:00:39.1]}
1-0